bitfinex-derivatives/quotes_ETHF0:USTF0_20250614
["timestamp","ask_amount","ask_price","bid_price","bid_amount"]
[1749919649210,0.79702,2508.2,2508.1,46.813]
[1749919649414,1.3032,2508.2,2508.1,47.61005]
[1749919649610,3.2078,2508.8,2508.1,70.94]
[1749919649912,0.79702,2508.2,2508.1,58.102]
[1749919650118,0.79702,2508.2,2508.1,70.871]
[1749919650415,0.79697,2508.4,2508.1,70.871]
[1749919650717,1.2561,2508.3,2508.2,4.00481]
[1749919651217,3.2078,2508.9,2508.4,0.79695]
[1749919651420,0.79692,2508.6,2508.5,34.70092]
[1749919651611,1.2561,2508.8,2508.5,37.1118]
[1749919651917,1.2561,2508.8,2508.6,46.624]
[1749919652218,0.79686,2508.7,2508.6,46.624]
[1749919652410,1.2561,2508.8,2508.1,27.3348]
[1749919652610,0.79702,2508.2,2508.1,27.3348]
[1749919652915,0.79702,2508.2,2508.1,24.127]
[1749919653812,9.00482,2508.2,2508.1,23.32868]
[1749919654018,0.79708,2508.0,2507.9,0.00598695]
[1749919654317,0.79718,2507.7,2507.6,12.412]
[1749919654524,0.79721,2507.6,2507.5,46.135]
[1749919655315,5.0,2507.6,2507.3,0.00598695]
[1749919655522,0.79727,2507.4,2507.3,0.00598695]
[1749919656612,0.79737,2507.1,2507.0,15.6198]
[1749919657718,0.79743,2506.9,2506.8,0.00598695]
[1749919660108,7.08683,2506.9,2506.8,0.00598695]
[1749919663015,1.2894,2506.9,2506.8,0.80344695]
[1749919663216,2.08683,2506.9,2506.8,0.00598695]
[1749919663920,0.79756,2506.5,2506.4,3.2078]
[1749919664219,0.79756,2506.5,2505.2,3.98983]
[1749919664220,0.79769,2506.1,2506.0,3.2078]
[1749919665219,0.00598695,2506.3,2506.0,3.2078]
[1749919665421,0.79768,2506.2,2506.1,0.79768]
[1749919665723,0.79769,2506.1,2506.0,4.0055]
[1749919666522,0.79768,2506.2,2506.1,0.79768]
[1749919666818,0.79769,2506.1,2506.0,3.2078]
[1749919667020,0.79772,2506.0,2505.9,36.92474]
[1749919667223,0.79772,2506.0,2505.9,69.059]
[1749919668425,0.79772,2506.0,2505.9,69.85675]
[1749919668618,0.79772,2506.0,2505.9,69.059]
[1749919669014,0.79772,2506.0,2505.9,36.127]
[1749919669219,0.79772,2506.0,2505.9,69.054]
[1749919669728,0.79772,2506.0,2505.9,69.85175]
[1749919670321,0.79772,2506.0,2505.9,69.054]
[1749919670923,0.79772,2506.0,2505.9,36.127]
[1749919671232,0.79775,2505.9,2505.8,0.00598695]
[1749919671425,2.16125,2505.9,2505.8,0.00598695]
[1749919672226,7.16125,2505.9,2505.8,0.00598695]
[1749919672426,2.16125,2505.9,2505.8,0.00598695]
[1749919673731,0.79788,2505.5,2505.4,3.2078]
[1749919674223,1.99456,2505.7,2505.1,56.653]
[1749919674224,0.79797,2505.2,2505.1,27.3358]
[1749919674420,0.79797,2505.2,2505.1,59.8418]
[1749919675025,0.79797,2505.2,2505.1,24.128]
[1749919675530,1.2597,2505.3,2505.1,24.128]
[1749919675731,0.79797,2505.2,2505.1,24.128]
[1749919676031,0.79797,2505.2,2505.1,24.92601]
[1749919676532,0.79797,2505.2,2505.1,24.128]
[1749919677233,1.2597,2505.3,2504.9,0.00598695]
[1749919677532,1.3453,2505.1,2505.0,0.79804]
[1749919677828,2.14331,2505.1,2505.0,0.79804]
[1749919678029,2.14331,2505.1,2504.9,0.80403695]
[1749919678224,0.79804,2505.0,2504.9,0.00598695]
[1749919678633,1.59651159,2505.0,2504.8,15.61249719]
[1749919678837,6.27994414,2504.9,2504.8,16.41058719]
[1749919679026,0.7981,2504.8,2504.7,0.01407235]
[1749919679335,0.79823,2504.4,2504.3,11.661]
[1749919679631,2.39474159,2504.4,2504.3,11.661]
[1749919679837,2.39474159,2504.4,2504.3,12.45926]
[1749919680024,2.39474159,2504.4,2504.3,11.661]
[1749919680421,4.72543291,2504.4,2504.3,11.661]
[1749919681031,3.92720291,2504.4,2504.3,11.661]
[1749919681235,3.92720291,2504.4,2504.3,12.45926]
[1749919681438,4.72543291,2504.4,2504.3,11.661]
[1749919681631,2.39474159,2504.4,2504.3,11.661]
[1749919681934,4.72543291,2504.4,2504.3,11.661]
[1749919682133,6.05083291,2504.4,2504.3,11.661]
[1749919682334,0.79826,2504.3,2504.2,24.132]
[1749919682528,4.72605926,2504.3,2504.2,24.132]
[1749919683036,2.39477159,2504.3,2504.2,24.132]
[1749919683836,3.93044074,2504.3,2504.1,35.23278695]
[1749919684137,1.59651159,2504.2,2504.1,36.03108695]
[1749919684336,2.39480159,2504.2,2504.1,35.23278695]
[1749919684633,1.59651159,2504.2,2504.1,35.23278695]
[1749919684830,2.39480159,2504.2,2504.1,35.23278695]
[1749919685031,1.59651159,2504.2,2504.1,35.23278695]
[1749919685234,2.39480159,2504.2,2504.1,36.03110695]
[1749919685435,2.39480159,2504.2,2504.1,35.23278695]
[1749919685830,2.39480159,2504.2,2504.1,3.21378695]
[1749919686244,3.71510159,2504.2,2504.1,0.00598695]
[1749919686435,6.04903074,2504.2,2504.1,0.00598695]
[1749919686637,6.04923088,2504.2,2504.1,0.00598695]
[1749919686832,3.71510159,2504.2,2504.1,0.00598695]
[1749919688338,6.82298335,2504.2,2504.1,0.00598695]
[1749919688832,5.50533361,2504.2,2504.1,0.00598695]
[1749919689241,3.75460159,2504.2,2504.1,0.00598695]
[1749919689831,1.9959,2504.0,2503.5,42.618]
[1749919690032,0.79848,2503.6,2503.5,42.618]
[1749919690230,2.39499159,2503.6,2503.5,10.965]
[1749919690434,0.79852,2503.5,2503.4,24.94052]
[1749919690634,4.72800194,2503.5,2503.4,56.56353]
[1749919691338,3.92948194,2503.5,2503.4,56.56353]
[1749919691742,4.72800194,2503.5,2503.4,56.56353]
[1749919691940,3.92948194,2503.5,2503.4,56.56353]
[1749919692242,1.5974014,2503.5,2503.4,56.56353]
[1749919692643,4.72826062,2503.5,2503.4,24.94053]
[1749919692840,4.72826062,2503.5,2503.4,67.40953]
[1749919693150,3.92974062,2503.5,2503.4,24.94053]
[1749919693345,2.3959214,2503.5,2503.4,55.631]
[1749919693646,1.5974014,2503.5,2503.4,56.42955]
[1749919693845,2.3959214,2503.5,2503.4,55.631]
[1749919694046,2.3959214,2503.5,2503.4,24.142]
[1749919694547,2.3959214,2503.5,2503.4,55.547]
[1749919696543,2.3959214,2503.5,2503.4,56.34555]
[1749919696741,2.3959214,2503.5,2503.4,55.547]
[1749919697043,2.3959214,2503.5,2503.4,24.142]
[1749919697440,0.79858,2503.3,2503.2,0.00399128]
[1749919697745,2.3959814,2503.3,2503.2,31.24499128]
[1749919697943,2.3959814,2503.3,2503.2,32.04360128]
[1749919699453,4.73150765,2503.3,2503.2,32.04360128]
[1749919699650,2.3959814,2503.3,2503.2,32.04360128]
[1749919699849,2.24196098,2503.3,2503.2,32.04360128]
[1749919700350,4.57748723,2503.3,2503.2,32.04360128]
[1749919701459,2.24196098,2503.3,2503.2,32.04360128]
[1749919701658,4.64999635,2503.3,2503.2,31.24499128]
[1749919702458,4.64999635,2503.3,2503.2,32.04360128]
[1749919703259,2.31005366,2503.3,2503.2,31.24499128]
[1749919703558,2.31005366,2503.3,2503.2,30.97899128]
[1749919703758,2.31005366,2503.3,2503.2,31.77760128]
[1749919705556,1.51147366,2503.3,2503.2,31.77760128]
[1749919705753,3.85634857,2503.3,2503.2,31.77760128]
[1749919706159,4.65492857,2503.3,2503.2,31.77760128]
[1749919706457,2.31005366,2503.3,2503.2,31.77760128]
[1749919706653,2.31005366,2503.3,2503.2,30.80699128]
[1749919706858,2.31005366,2503.3,2503.2,0.00399128]
[1749919707059,5.51785366,2503.3,2503.2,30.73499128]
[1749919707261,8.62754277,2503.3,2503.2,30.73499128]
[1749919707463,9.90634277,2503.3,2503.2,30.73599128]
[1749919707658,6.79665366,2503.3,2503.2,30.73599128]
[1749919708062,6.79665366,2503.3,2503.2,0.00399128]
[1749919708261,9.90634277,2503.3,2503.2,0.00399128]
[1749919708564,0.79877,2502.7,2502.6,24.152]
[1749919708760,2.18225159,2502.7,2502.6,54.827]
[1749919709263,2.18225159,2502.7,2502.6,55.6258]
[1749919709461,1.38348159,2502.7,2502.6,55.6258]
[1749919709661,2.18225159,2502.7,2502.6,54.827]
[1749919709861,2.18225159,2502.7,2502.6,54.768]
[1749919710067,2.18225159,2502.7,2502.6,54.756]
[1749919710363,2.06576697,2502.7,2502.6,54.756]
[1749919710557,2.06576697,2502.7,2502.6,24.152]
[1749919710763,2.06576697,2502.7,2502.6,54.731]
[1749919711563,2.06576697,2502.7,2502.6,24.152]
[1749919711765,2.06576697,2502.7,2502.6,54.674]
[1749919712166,2.06576697,2502.7,2502.6,54.659]
[1749919712358,0.79884,2502.5,2502.4,13.5048]
[1749919712662,0.7991,2501.7,2501.5,3.2078]
[1749919712854,0.7991,2501.7,2501.6,30.477]
[1749919713056,0.7991,2501.7,2501.6,31.2761]
[1749919713057,1.26648637,2501.7,2501.6,31.2761]
[1749919713261,2.06557637,2501.7,2501.6,31.2761]
[1749919713560,4.47428637,2501.7,2501.1,3.2078]
[1749919713761,2.53048637,2501.6,2501.1,3.2078]
[1749919713954,1.26648637,2501.5,2501.1,4.00707]
[1749919714154,0.79923,2501.3,2501.2,31.38225]
[1749919714368,1.26648637,2501.3,2501.2,30.583]
[1749919714663,1.26648637,2501.3,2501.2,31.38225]
[1749919715068,1.26648637,2501.3,2501.2,0.79925]
[1749919715371,0.00598695,2501.6,2501.2,45.821]
[1749919715562,1.26397226,2501.5,2501.4,4.00699]
[1749919715762,0.00598695,2501.6,2501.5,0.79915]
[1749919715963,2.41272212,2502.5,2501.5,1.99789]
[1749919716263,2.41272212,2502.5,2502.3,0.7989]
[1749919716264,1.26420319,2502.4,2502.3,0.7989]
[1749919716472,1.26420319,2502.4,2502.3,41.6019]
[1749919716660,0.7989,2502.3,2502.1,0.79895]
[1749919716862,0.06809268,2502.5,2502.0,0.6534]
[1749919717061,0.79893,2502.2,2502.1,40.784]
[1749919717465,1.37477963,2502.5,2502.1,40.784]
[1749919717662,2.06357278,2502.4,2502.1,41.58296]
[1749919717969,0.79887,2502.4,2502.2,40.74]
[1749919718169,1.37477963,2502.5,2502.2,40.74]
[1749919718369,2.06354864,2502.4,2502.2,40.74]
[1749919718563,1.37477963,2502.5,2502.3,0.79887]
[1749919718764,2.17362963,2502.5,2502.2,41.53891]
[1749919719064,1.30668695,2502.5,2502.2,40.74]
[1749919719263,0.79888,2502.4,2502.2,41.53893]
[1749919719463,2.10554695,2502.5,2502.3,0.7989]
[1749919719667,0.79889,2502.4,2502.2,41.53892]
[1749919719863,1.30668695,2502.5,2502.2,40.74]
[1749919720064,2.10553695,2502.5,2502.3,0.7989]
[1749919720267,1.26530417,2502.4,2502.3,0.7989]
[1749919720567,0.79887,2502.4,2502.2,41.53891]
[1749919720770,2.10554695,2502.5,2502.3,0.79889]
[1749919720963,1.30668695,2502.5,2502.4,41.39287]
[1749919721163,2.57183509,2502.5,2502.4,41.39287]
[1749919721359,3.37067446,2502.5,2502.4,41.39287]
[1749919721558,2.57183446,2502.5,2502.4,41.39287]
[1749919721769,0.00598695,2502.5,2502.4,41.39287]
[1749919721966,0.00598695,2502.5,2502.4,44.60067]
[1749919723370,0.00598695,2502.5,2502.4,44.18667]
[1749919724068,0.07407963,2502.5,2502.4,44.18667]
[1749919724470,0.07407963,2502.5,2502.4,3.2078]
[1749919724669,0.07407963,2502.5,2502.0,3.8612]
[1749919724870,0.79888,2502.4,2502.2,0.79891]
[1749919725177,0.07407963,2502.5,2502.2,0.79891]
[1749919725371,0.7989,2502.3,2502.2,0.79891]
[1749919725868,2.15077,2502.4,2502.3,0.7989]
[1749919726067,2.15079,2502.4,2502.3,40.8519]
[1749919726568,0.87293963,2502.5,2502.4,0.79887]
[1749919726869,0.07407963,2502.5,2502.4,0.79887]
[1749919727176,0.79887,2502.4,2502.3,40.85188]
[1749919727978,0.79891,2502.3,2502.2,0.79891]
[1749919728273,0.07407963,2502.5,2502.0,3.8612]
[1749919728480,1.338,2502.4,2502.1,40.73995]
[1749919728670,0.7989,2502.3,2502.1,40.73995]
[1749919728871,0.79891,2502.3,2502.1,39.941]
[1749919729171,0.79891,2502.3,2502.1,40.73993]
[1749919729371,0.79891,2502.3,2502.2,0.79893]
[1749919729572,0.79894,2502.2,2502.0,3.2078]
[1749919729875,0.79894,2502.2,2502.1,39.928]
[1749919730076,0.79894,2502.2,2502.1,9.971]
[1749919730276,0.79894,2502.2,2502.1,39.89]
[1749919730678,0.79894,2502.2,2502.1,9.971]
[1749919730880,0.79894,2502.2,2502.1,39.854]
[1749919731079,7.06417905,2502.2,2502.1,39.854]
[1749919731273,8.45527905,2502.2,2502.1,29.883]
[1749919731471,0.79899,2502.0,2501.9,24.164]
[1749919731685,4.00679,2502.0,2501.9,54.022]
[1749919732082,4.00679,2502.0,2501.9,24.164]
[1749919732280,4.00679,2502.0,2501.9,54.011]
[1749919732482,0.79909,2501.7,2501.6,13.1788]
[1749919732783,0.79909,2501.7,2501.6,43.0088]
[1749919732977,0.79909,2501.7,2501.6,3.2078]
[1749919733179,0.79919,2501.4,2501.3,9.97698695]
[1749919733679,0.79919,2501.4,2501.3,0.00598695]
[1749919733877,4.00699,2501.4,2501.3,0.00598695]
[1749919734688,10.27116694,2501.4,2501.3,0.00598695]
[1749919735585,0.79931,2501.0,2500.9,9.651]
[1749919735986,0.79931,2501.0,2500.9,39.353]
[1749919736188,2.10411,2501.0,2500.9,39.353]
[1749919736494,3.2078,2501.4,2500.9,44.353]
[1749919736684,0.79925,2501.2,2501.1,0.79925]
[1749919736882,0.00598695,2501.4,2500.8,3.2078]
[1749919737089,5.20598,2501.2,2500.9,9.652]
[1749919737291,0.79939,2500.8,2500.6,29.661]
[1749919737486,0.79939,2500.8,2500.7,0.79941]
[1749919737684,0.79935,2500.9,2500.8,0.79936]
[1749919737884,0.79938,2500.8,2500.6,29.661]
[1749919738194,0.79939,2500.8,2500.7,0.79941]
[1749919738378,1.3048,2501.1,2500.7,0.79939]
[1749919738582,0.79941,2500.7,2500.6,0.79942]
[1749919738783,0.79934,2501.0,2500.8,0.79936]
[1749919738982,1.3048,2501.1,2500.9,29.606]
[1749919739190,0.79931,2501.0,2500.9,29.606]
[1749919739590,0.79931,2501.0,2500.9,30.40534]
[1749919739893,0.79931,2501.0,2500.9,29.606]
[1749919740085,0.7994,2500.8,2500.6,0.79942]
[1749919740391,1.3492,2500.9,2500.7,39.202]
[1749919740587,0.79929,2501.1,2501.0,0.7993]
[1749919740792,0.79935,2500.9,2500.8,0.79936]
[1749919740989,0.79935,2500.9,2500.8,30.32436]
[1749919741394,0.79935,2500.9,2500.8,29.525]
[1749919741594,0.79938,2500.8,2500.7,9.654]
[1749919741890,3.2078,2501.2,2500.7,39.158]
[1749919742094,0.79925,2501.2,2501.1,0.79925]
[1749919742292,0.79931,2501.1,2501.0,29.48]
[1749919743689,1.2992,2501.3,2501.0,29.48]
[1749919743904,0.00598695,2501.4,2501.3,0.79922]
[1749919744090,0.80517695,2501.4,2501.3,29.413]
[1749919744291,4.01297695,2501.4,2501.3,29.417]
[1749919744694,0.79928,2501.1,2501.0,29.405]
[1749919744893,1.99829,2501.0,2500.6,0.79942]
[1749919745099,0.79944,2500.6,2500.5,12.8618]
[1749919745399,0.79944,2500.6,2500.5,10.45347]
[1749919745595,0.79951,2500.4,2500.3,24.96851]
[1749919745894,0.79936,2500.9,2500.4,1.99877]
[1749919746199,0.79936,2500.9,2500.8,0.79938]
[1749919746401,0.79935,2500.9,2500.8,39.81136]
[1749919747002,0.79935,2500.9,2500.8,39.82136]
[1749919747498,0.79935,2500.9,2500.8,39.022]
[1749919747694,0.79941,2500.8,2500.6,4.00722]
[1749919747897,0.79944,2500.6,2500.5,3.2078]
[1749919748092,0.79944,2500.6,2500.5,32.5158]
[1749919748294,0.79944,2500.6,2500.5,33.31527]
[1749919748593,3.2078,2501.1,2500.8,0.79936]
[1749919748795,1.3654,2501.2,2500.9,9.337]
[1749919748994,3.21378695,2501.4,2500.9,9.337]
[1749919749196,3.21378695,2501.4,2500.9,1.2605]
[1749919749400,3.21378695,2501.4,2501.3,0.79922]
[1749919749593,3.21378695,2501.4,2500.8,6.46668]
[1749919749898,0.79922,2501.3,2500.9,38.598]
[1749919750088,3.21378695,2501.4,2500.9,38.598]
[1749919750395,3.21378695,2501.4,2500.5,1.0805]
[1749919750396,3.2078,2501.1,2500.5,1.0805]
[1749919750700,0.79941,2500.7,2500.6,38.586]
[1749919751094,1.3511,2501.0,2500.6,38.586]
[1749919751300,0.79941,2500.7,2500.6,9.337]
[1749919751500,0.79947,2500.5,2500.4,3.2078]
[1749919751701,1.3511,2500.6,2500.4,41.7678]
[1749919751895,5.20609,2501.1,2500.4,42.56728]
[1749919752205,0.79947,2500.5,2500.4,41.7678]
[1749919752502,0.79957,2500.2,2500.1,3.2078]
[1749919752706,0.79967,2499.9,2499.8,0.07364]
[1749919752904,0.79967,2499.9,2499.8,29.26964]
[1749919753300,0.00599892,2500.1,2500.0,0.79963]
[1749919753504,0.00599892,2500.1,2500.0,9.00743]
[1749919753699,4.0003,2501.0,2500.0,8.2078]
[1749919754007,4.00713,2501.0,2500.9,0.79935]
[1749919754304,4.00711,2501.0,2500.9,29.176]
[1749919755004,0.79938,2500.8,2500.7,0.00599892]
[1749919755302,0.79938,2500.8,2500.7,38.48899892]
[1749919755709,0.79938,2500.8,2500.7,39.28840892]
[1749919756005,3.2078,2501.0,2500.9,0.79935]
[1749919756600,0.00599892,2501.2,2500.7,38.48899892]
[1749919756800,0.00599892,2501.2,2501.1,0.79928]
[1749919757304,0.00599892,2501.2,2501.1,29.89128]
[1749919757706,0.00599892,2501.2,2501.0,0.79929]
[1749919758007,0.80524892,2501.2,2501.1,38.407]
[1749919758204,0.00599892,2501.2,2500.7,0.00599892]
[1749919758399,4.00718,2500.8,2500.7,0.00599892]
[1749919758704,0.79962,2500.1,2500.0,29.051]
[1749919758901,1.99861,2500.6,2499.9,13.8787]
[1749919759108,0.79963,2500.0,2499.9,12.5458]
[1749919759409,3.2078,2500.4,2500.0,0.79962]
[1749919759611,0.79958,2500.2,2500.0,0.79962]
[1749919759806,2.09595,2500.3,2499.9,38.381]
[1749919760003,0.79952,2500.4,2499.9,43.58794]
[1749919760302,3.2078,2500.7,2500.3,1.99885]
[1749919760503,3.2078,2500.7,2500.6,0.79944]
[1749919760704,4.00721,2500.7,2500.4,38.348]
[1749919760904,0.79947,2500.6,2500.5,38.358]
[1749919761102,3.2078,2500.7,2500.6,0.79944]
[1749919761513,2.6149,2501.1,2500.6,0.79944]
[1749919761705,0.7994,2500.8,2500.7,0.79941]
[1749919761905,0.79941,2500.7,2500.6,0.79942]
[1749919762214,0.79938,2500.8,2500.7,0.79939]
[1749919762512,0.8733416,2501.2,2501.1,0.79928]
[1749919762804,0.0740916,2501.2,2501.1,29.78428]
[1749919763405,0.8733416,2501.2,2501.1,29.78428]
[1749919763603,0.80524892,2501.2,2501.1,0.79928]
[1749919763804,0.00599892,2501.2,2501.1,39.07828]
[1749919764101,0.00599892,2501.2,2500.8,0.79938]
[1749919764304,0.79938,2500.8,2500.7,3.2078]
[1749919764502,1.33,2501.1,2500.7,41.4778]
[1749919764699,0.79938,2500.8,2500.7,3.2078]
[1749919764902,1.33,2501.1,2500.2,2.6428]
[1749919764903,0.79947,2500.5,2500.4,27.3898]
[1749919765100,1.33,2500.7,2500.5,0.79946]
[1749919765302,0.79947,2500.5,2500.4,65.6398]
[1749919765509,0.79947,2500.5,2500.4,65.6318]
[1749919765715,4.5378,2500.7,2500.2,0.79956]
[1749919766019,1.26121979,2500.6,2500.5,0.79947]
[1749919766307,0.79944,2500.6,2500.5,28.89]
[1749919766617,0.79944,2500.6,2500.5,38.211]
[1749919767113,2.08294,2500.6,2500.5,38.211]
[1749919769015,0.79947,2500.5,2500.4,0.7995]
[1749919769210,5.55242944,2501.4,2500.4,41.0028]
[1749919769411,1.28079892,2501.2,2500.7,3.2078]
[1749919769614,1.28079892,2501.2,2500.8,28.778]
[1749919769913,0.00599892,2501.2,2500.9,37.778]
[1749919770109,0.79938,2500.8,2500.7,3.2078]
[1749919770306,1.2748,2501.1,2500.7,37.78]
[1749919770914,2.07411,2501.1,2500.7,40.9878]
[1749919771214,0.00599892,2501.2,2500.7,40.9878]
[1749919771609,0.00599892,2501.2,2500.9,0.79932]
[1749919771810,0.00599892,2501.2,2501.0,28.784]
[1749919772206,0.00599892,2501.2,2500.7,3.2078]
[1749919772405,0.79944,2500.6,2500.5,9.004]
[1749919772610,4.00724,2500.6,2500.5,9.004]
[1749919774308,5.26954789,2500.6,2500.5,9.004]
[1749919774714,5.33764057,2500.6,2500.5,9.004]
[1749919775416,0.79957,2500.2,2500.1,3.2078]
[1749919775711,0.79956,2500.3,2499.7,3.2078]
[1749919775912,2.1898,2500.2,2499.9,0.79966]
[1749919776115,3.2078,2500.3,2499.9,37.636]
[1749919776409,0.79963,2500.0,2499.9,37.636]
[1749919776816,1.3902,2500.2,2499.8,9.07864]
[1749919776817,0.79967,2499.9,2499.8,9.07864]
[1749919777022,5.39767,2499.9,2499.8,9.07864]
[1749919777616,1.3902,2499.9,2499.8,9.07864]
[1749919777919,0.79955,2500.3,2500.0,0.79962]
[1749919778221,0.79967,2499.9,2499.8,0.07364]
[1749919779428,8.43678055,2499.9,2499.8,0.07364]
[1749919779725,0.79988,2499.3,2499.0,28.563]
[1749919779917,0.00599892,2499.4,2499.0,28.563]
[1749919780223,0.79989,2499.2,2499.1,28.555]
[1749919780421,0.79988,2499.3,2499.1,29.35492]
[1749919780626,0.79988,2499.3,2499.1,28.555]
[1749919780821,0.79989,2499.2,2499.1,28.555]
[1749919781123,0.00599892,2499.4,2499.1,28.544]
[1749919781320,0.00599892,2499.4,2499.0,9.006]
[1749919781524,0.79992,2499.1,2499.0,9.006]
[1749919781727,0.79991,2499.2,2499.0,37.51]
[1749919782019,0.00599892,2499.4,2499.0,37.51]
[1749919782420,0.80584892,2499.4,2499.1,0.79991]
[1749919782624,0.79986,2499.3,2499.1,0.79991]
[1749919782825,0.80584892,2499.4,2499.1,0.79991]
[1749919783026,0.00599892,2499.4,2499.0,0.79994]
[1749919783217,0.79988,2499.3,2499.1,28.472]
[1749919783416,0.00599892,2499.4,2499.3,0.79986]
[1749919784121,0.00599892,2499.4,2499.3,37.471]
[1749919784425,0.00599892,2499.4,2499.3,0.79986]
[1749919784622,0.00599892,2499.4,2499.3,38.26086]
[1749919784827,0.00599892,2499.4,2499.3,38.24586]
[1749919785129,0.00599892,2499.4,2499.3,0.79986]
[1749919785322,0.00599892,2499.4,2499.3,38.23586]
[1749919785720,0.00599892,2499.4,2499.3,37.445]
[1749919785921,0.80583892,2499.4,2499.2,3.2078]
[1749919786218,0.00599892,2499.4,2499.2,12.2158]
[1749919786422,2.13686,2499.3,2499.2,37.424]
[1749919786622,1.337,2499.3,2498.9,4.00778]
[1749919786821,0.79991,2499.2,2499.0,37.424]
[1749919787017,1.337,2499.1,2499.0,38.22395]
[1749919787229,0.79987,2499.3,2499.0,38.22393]
[1749919787424,0.00599892,2499.4,2499.0,37.424]
[1749919787623,0.79987,2499.3,2499.0,38.22392]
[1749919787822,0.00599892,2499.4,2499.0,38.22392]
[1749919788032,0.79992,2499.2,2499.0,37.424]
[1749919788333,0.7999,2499.2,2499.1,37.405]
[1749919788527,2.00558892,2499.4,2498.9,3.2078]
[1749919788728,0.79995,2499.1,2499.0,37.371]
[1749919788931,0.79995,2499.1,2499.0,37.373]
[1749919789322,0.79995,2499.0,2498.9,3.2078]
[1749919789626,1.3795,2499.3,2498.9,28.346]
[1749919789827,0.79994,2499.1,2498.9,29.14597]
[1749919790033,0.79995,2499.0,2498.9,28.346]
[1749919790329,0.79994,2499.1,2498.9,28.346]
[1749919790530,1.3795,2499.3,2498.9,28.346]
[1749919790734,0.00599892,2499.4,2499.3,0.79986]
[1749919790936,0.00599892,2499.4,2499.3,29.10986]
[1749919791135,0.00599892,2499.4,2499.3,37.80186]
[1749919791428,1.99965,2499.3,2498.2,3.2078]
[1749919791630,1.99965,2499.3,2497.0,7.94410552]
[1749919791631,3.2078,2498.7,2498.1,3.2078]
[1749919791832,3.2078,2499.1,2498.2,3.2078]
[1749919792127,1.2884,2499.0,2498.5,3.2078]
[1749919792327,0.80002,2498.8,2498.5,40.3168]
[1749919792533,1.2884,2499.0,2498.3,1.289]
[1749919792729,1.2884,2498.7,2498.4,37.109]
[1749919792932,3.2078,2499.1,2498.2,3.2078]
[1749919793128,0.80003,2498.8,2498.5,37.091]
[1749919793629,0.80009,2498.6,2498.3,1.289]
[1749919793830,4.4962,2499.0,2498.4,37.083]
[1749919794038,0.8,2498.9,2498.5,3.2078]
[1749919794334,4.4962,2499.0,2498.5,3.2078]
[1749919794630,3.2078,2499.3,2498.8,0.80002]
[1749919794834,1.4213,2499.2,2498.9,8.694]
[1749919795043,0.79994,2499.1,2498.9,8.694]
[1749919795231,1.4213,2499.2,2498.9,8.694]
[1749919795531,0.79995,2499.0,2498.5,4.5829]
[1749919795733,0.80008,2498.6,2498.5,11.9018]
[1749919795928,0.80008,2498.6,2498.5,8.694]
[1749919796133,0.80011,2498.5,2498.4,1.4047]
[1749919796534,1.4213,2498.9,2498.2,3.2078]
[1749919796734,3.2078,2498.4,2496.5,3.2078]
[1749919796932,3.2078,2497.5,2496.8,3.2078]
[1749919797133,3.2078,2497.5,2496.9,10.0612]
[1749919797328,4.00826,2497.5,2496.9,10.0612]
[1749919797530,3.2078,2497.5,2496.6,2.6442]
[1749919797736,3.2078,2496.9,2496.5,3.2078]
[1749919798031,3.2078,2497.2,2496.6,37.109]
[1749919798225,3.2078,2497.2,2496.7,37.132]
[1749919798226,4.00834,2497.2,2496.7,37.132]
[1749919798432,3.2078,2497.2,2496.7,37.132]
[1749919798736,3.2078,2497.2,2496.8,0.80063]
[1749919798931,3.2078,2497.2,2496.6,1.3672]
[1749919799134,3.2078,2497.2,2497.1,0.80056]
[1749919799525,3.2078,2497.2,2497.1,9.49556]
[1749919799935,0.80637892,2497.7,2497.1,9.49556]
[1749919799936,3.2078,2497.6,2497.1,8.695]
[1749919800237,0.00599892,2497.7,2497.6,0.8004]
[1749919800433,0.00599892,2497.7,2497.6,9.4964]
[1749919800633,13.70199892,2497.7,2496.1,3.42095845]
[1749919800829,3.2078,2496.5,2495.7,4.6148]
[1749919801028,2.00153,2497.0,2496.3,3.2078]
[1749919801029,3.2078,2497.0,2496.3,3.2078]
[1749919801228,3.9625,2497.6,2496.6,3.2078]
[1749919801532,3.2078,2497.5,2496.9,3.2078]
[1749919801731,4.522,2497.5,2497.4,0.80047]
[1749919802034,0.00599892,2497.7,2497.4,39.21917]
[1749919802336,0.00599892,2497.7,2497.6,0.8004]
[1749919802532,3.2078,2498.1,2498.0,0.80027]
[1749919802732,3.2078,2498.1,2498.0,9.49627]
[1749919802935,3.2078,2498.1,2498.0,0.80027]
[1749919803137,3.2078,2498.5,2498.0,42.234]
[1749919803341,3.2078,2498.5,2498.1,37.228]
[1749919803639,3.21379892,2498.5,2498.1,37.23399892]
[1749919803938,3.21379892,2498.5,2498.2,0.80021]
[1749919804237,3.21379892,2498.5,2498.2,0.06809268]
[1749919804437,3.2078,2498.1,2496.2,3.2078]
[1749919804630,3.2078,2497.2,2496.5,3.2078]
[1749919804934,3.2078,2497.2,2497.1,0.80056]
[1749919805238,3.2078,2497.2,2497.1,43.72456]
[1749919805537,0.00599892,2497.4,2497.3,0.8005]
[1749919805941,3.2078,2497.8,2497.7,0.80037]
[1749919806236,3.2078,2497.8,2497.5,1.349]
[1749919806430,3.2078,2497.8,2497.7,0.80037]
[1749919806628,3.2078,2498.1,2497.6,39.3869]
[1749919806837,3.2078,2498.4,2498.3,0.80017]
[1749919807138,3.2078,2498.4,2498.3,38.76118]
[1749919807730,0.00599892,2498.6,2498.5,0.80012]
[1749919808739,0.00599892,2498.6,2498.5,7.11002]